[Event "41st BAN National Women Chess-ch 2022"]
[Site "Dhaka"]
[Date "2022.11.24"]
[Round "7.2"]
[White "Nusrat Jahan, Alo"]
[Black "Wadifa, Ahmed"]
[Result "0-1"]
[ECO "B49"]
[WhiteElo "1710"]
[BlackElo "1656"]
[Annotator "NA RC COMBH"]
[PlyCount "116"]
[EventDate "2022.11.17"]
[EventCountry "BAN"]
[SourceTitle "playchess.com"]
[Source "ChessBase"]
[SourceQuality "1"]
[TimeControl "40/5400+30:1800+30"]

1. e4 {[%emt 0:00:03]} c5 {[%emt 0:00:06]} 2. Nc3 {[%emt 0:00:07]} Nc6 {[%emt 0:00:06]} 3. Nf3 {[%emt 0:00:23]} e6 {[%emt 0:01:07]} 4. d4 {[%emt 0:00:20]} cxd4 {[%emt 0:00:02]} 5. Nxd4 {[%emt 0:00:05]} Qc7 {[%emt 0:00:14]} 6. a3 {[%emt 0:00:44]} a6 {[%emt 0:00:13]} 7. Be3 {[%emt 0:00:21]} b5 {[%emt 0:02:31]} 8. Be2 {[%emt 0:02:58]} Bb7 {[%emt 0:01:12]} 9. f4 {[%emt 0:03:03]} Nf6 {[%emt 0:13:20]} 10. e5 {[%emt 0:06:14]} Nxd4 {[%emt 0:00:25]} 11. Bxd4 {[%emt 0:00:21]} Nd5 {[%emt 0:02:09]} 12. Nxd5 {[%emt 0:03:21]} Bxd5 {[%emt 0:00:09]} 13. O-O {[%emt 0:04:15]} Bc5 {[%emt 0:01:07]} 14. c3 {[%emt 0:02:08]} O-O {[%emt 0:06:58]} 15. Bf3 {[%emt 0:05:08]} Bxf3 {[%emt 0:01:58]} 16. Rxf3 {[%emt 0:01:47]} d6 {[%emt 0:02:58]} 17. Kh1 {[%emt 0:06:42]} Bxd4 {[%emt 0:06:00]} 18. cxd4 {[%emt 0:01:30]} Rac8 {[%emt 0:00:38]} 19. Rc3 {[%emt 0:00:28]} Qd7 {[%emt 0:00:52]} 20. Rac1 {[%emt 0:02:46]} Rxc3 {[%emt 0:00:08]} 21. Rxc3 {[%emt 0:00:08]} dxe5 {[%emt 0:00:06]} 22. fxe5 {[%emt 0:00:45]} Rd8 {[%emt 0:03:26]} 23. Qd2 {[%emt 0:06:20]} g6 {[%emt 0:04:13]} 24. Rd3 {[%emt 0:04:37]} Qc7 {[%emt 0:01:50]} 25. Qc3 {[%emt 0:02:02]} Qb7 {[%emt 0:01:11]} 26. Qa5 {[%emt 0:02:56]} Rd7 {[%emt 0:00:50]} 27. Qe1 {[%emt 0:02:52]} Qc6 {[%emt 0:02:36]} 28. h3 {[%emt 0:06:07]} Qc4 {[%emt 0:03:15]} 29. Qc3 {[%emt 0:01:16]} Qxc3 {[%emt 0:00:20]} 30. bxc3 {[%emt 0:00:05]} Rc7 {[%emt 0:00:09]} 31. Kg1 {[%emt 0:04:49]} Rc4 {[%emt 0:00:02]} 32. Kf2 {[%emt 0:01:33]} Ra4 {[%emt 0:00:03]} 33. Rd2 {[%emt 0:00:27]} Rxa3 {[%emt 0:00:19]} 34. Rc2 {[%emt 0:00:07]} a5 {[%emt 0:00:41]} 35. Rb2 {[%emt 0:03:10]} Rxc3 {[%emt 0:01:06]} 36. Rxb5 {[%emt 0:00:33]} a4 {[%emt 0:01:35]} 37. Ra5 {[%emt 0:00:14]} a3 {[%emt 0:00:05]} 38. Ra7 {[%emt 0:00:35]} Rc2+ {[%emt 0:01:12]} 39. Kf3 {[%emt 0:00:30]} a2 {[%emt 0:00:18]} 40. g3 {[%emt 0:00:48]} Kf8 {[%emt 0:00:19]} 41. Kf4 {[%emt 0:31:33]} h6 {[%emt 0:30:38]} 42. g4 {[%emt 0:03:05]} g5+ {[%emt 0:00:23]} 43. Kg3 {[%emt 0:03:17]} Ke8 {[%emt 0:00:08]} 44. h4 {[%emt 0:01:24]} gxh4+ {[%emt 0:00:09]} 45. Kxh4 {[%emt 0:00:24]} Kd8 {[%emt 0:00:05]} 46. g5 {[%emt 0:02:59]} hxg5+ {[%emt 0:00:03]} 47. Kxg5 {[%emt 0:00:07]} Kc8 {[%emt 0:00:05]} 48. Kf6 {[%emt 0:00:15]} Rf2+ {[%emt 0:00:04]} 49. Ke7 {[%emt 0:00:07]} Kb8 {[%emt 0:00:06]} 50. Ra4 {[%emt 0:02:07]} Kb7 {[%emt 0:00:07]} 51. Kd6 {[%emt 0:01:45]} Kb6 {[%emt 0:00:07]} 52. d5 {[%emt 0:11:48]} exd5 {[%emt 0:00:24]} 53. Kxd5 {[%emt 0:00:11]} Kb5 {[%emt 0:00:03]} 54. Ra8 {[%emt 0:02:09]} Kb4 {[%emt 0:00:11]} 55. Kd4 {[%emt 0:00:25]} Kb3 {[%emt 0:00:06]} 56. Kd3 {[%emt 0:01:37]} Kb2 {[%emt 0:00:12]} 57. Rb8+ {[%emt 0:00:28]} Kc1 {[%emt 0:00:03]} 58. Ra8 {[%emt 0:01:51]} Kb1 {[%emt 0:00:09]} 0-1

[Event "41st BAN National Women Chess-ch 2022"]
[Site "Dhaka"]
[Date "2022.11.24"]
[Round "7.3"]
[White "Tasnia Tarannum, Orpa"]
[Black "Sabiha, Marjana"]
[Result "1-0"]
[ECO "B07"]
[WhiteElo "1662"]
[BlackElo "1267"]
[Annotator "NA RC COMBH"]
[PlyCount "111"]
[EventDate "2022.11.17"]
[EventCountry "BAN"]
[SourceTitle "playchess.com"]
[Source "ChessBase"]
[SourceQuality "1"]
[TimeControl "40/5400+30:1800+30"]

1. d4 {[%emt 0:00:09]} d6 {[%emt 0:00:25]} 2. e4 {[%emt 0:00:05]} Nf6 {[%emt 0:00:22]} 3. Nc3 {[%emt 0:00:04]} c6 {[%emt 0:00:21]} 4. f4 {[%emt 0:00:05]} Qa5 {[%emt 0:00:56]} 5. Bd3 {[%emt 0:00:07]} Bg4 {[%emt 0:02:38]} 6. Qd2 {[%emt 0:00:08]} Bd7 {[%emt 0:03:41]} 7. e5 {[%emt 0:04:53]} dxe5 {[%emt 0:01:07]} 8. fxe5 {[%emt 0:00:24]} Nd5 {[%emt 0:00:22]} 9. Nf3 {[%emt 0:00:22]} g6 {[%emt 0:02:05]} 10. O-O {[%emt 0:00:38]} Be6 {[%emt 0:01:02]} 11. Qf2 {[%emt 0:06:04]} h6 {[%emt 0:02:37]} 12. Bd2 {[%emt 0:04:42]} Nxc3 {[%emt 0:01:43]} 13. bxc3 {[%emt 0:00:19]} Qc7 {[%emt 0:01:48]} 14. Nh4 {[%emt 0:05:09]} Nd7 {[%emt 0:09:20]} 15. a4 {[%emt 0:10:48]} O-O-O {[%emt 0:01:49]} 16. a5 {[%emt 0:00:26]} a6 {[%emt 0:00:13]} 17. Rfb1 {[%emt 0:01:19]} Bg7 {[%emt 0:15:24]} 18. Rb2 {[%emt 0:02:23]} Nxe5 {[%emt 0:01:55]} 19. dxe5 {[%emt 0:00:55]} Bxe5 {[%emt 0:52:12]} 20. Nf3 {[%emt 1:01:30]} Bd5 {[%emt 0:00:00]} 21. Nxe5 {[%emt 0:00:00]} Qxe5 {[%emt 0:01:00]} 22. Rab1 {[%emt 0:01:00]} c5 {[%emt 0:00:00]} 23. Qxc5+ {[%emt 0:00:00]} Qc7 {[%emt 0:00:00]} 24. Qxc7+ {[%emt 0:00:00]} Kxc7 {[%emt 0:00:00]} 25. Bf4+ {[%emt 0:00:00]} Kd7 {[%emt 0:00:00]} 26. Be2 {[%emt 0:00:00]} g5 {[%emt 0:00:00]} 27. Bg3 {[%emt 0:00:00]} Kc8 {[%emt 0:00:00]} 28. Rb4 {[%emt 0:00:00]} f5 {[%emt 0:00:00]} 29. Bc4 {[%emt 0:00:00]} Bc6 {[%emt 0:00:00]} 30. Be6+ {[%emt 0:00:00]} Rd7 {[%emt 0:00:00]} 31. Bxf5 {[%emt 0:00:00]} Kd8 {[%emt 0:00:00]} 32. Bxd7 {[%emt 0:00:00]} Kxd7 {[%emt 0:00:00]} 33. Rd1+ {[%emt 0:00:00]} Ke8 {[%emt 0:00:00]} 34. Rbd4 {[%emt 0:00:00]} Kf7 {[%emt 0:00:00]} 35. Rd8 {[%emt 0:00:00]} Rh7 {[%emt 0:00:00]} 36. Be5 {[%emt 0:00:00]} Ke6 {[%emt 0:00:00]} 37. Bd4 {[%emt 0:00:00]} Bb5 {[%emt 0:00:00]} 38. Re1+ {[%emt 0:00:00]} Kf7 {[%emt 0:00:00]} 39. Bc5 {[%emt 0:00:00]} Kf6 {[%emt 0:00:00]} 40. Rf8+ {[%emt 0:00:00]} Kg6 {[%emt 0:00:00]} 41. g4 {[%emt 0:00:00]} Bc4 {[%emt 0:14:43]} 42. Rxe7 {[%emt 0:00:00]} Rxe7 {[%emt 0:00:21]} 43. Bxe7 {[%emt 0:00:00]} Kg7 {[%emt 0:01:12]} 44. Rf2 {[%emt 0:00:00]} Bd5 {[%emt 0:00:49]} 45. Bf8+ {[%emt 0:00:00]} Kg6 {[%emt 0:02:53]} 46. Rd2 {[%emt 0:00:15]} Bc6 {[%emt 0:00:15]} 47. Rd6+ {[%emt 0:00:09]} Kf7 {[%emt 0:00:16]} 48. Bxh6 {[%emt 0:00:16]} Be4 {[%emt 0:00:25]} 49. Bxg5 {[%emt 0:00:10]} Kg8 {[%emt 0:00:46]} 50. Rd7 {[%emt 0:00:12]} Bc6 {[%emt 0:00:11]} 51. Re7 {[%emt 0:00:13]} Kf8 {[%emt 0:00:15]} 52. h4 {[%emt 0:00:07]} Bf3 {[%emt 0:00:56]} 53. h5 {[%emt 0:00:26]} Bxg4 {[%emt 0:22:58]} 54. h6 {[%emt 0:44:12]} Bf5 {[%emt 0:00:00]} 55. h7 {[%emt 0:00:00]} Bxh7 {[%emt 0:01:00]} 56. Rxh7 {[%emt 0:01:00]} 1-0

[Event "41st BAN National Women Chess-ch 2022"]
[Site "Dhaka"]
[Date "2022.11.24"]
[Round "7.4"]
[White "Noshin, Anjum"]
[Black "Warsia, Khusbu"]
[Result "1-0"]
[ECO "B12"]
[WhiteElo "1907"]
[BlackElo "1540"]
[Annotator "TA"]
[PlyCount "124"]
[EventDate "2022.11.17"]
[EventCountry "BAN"]
[SourceTitle "playchess.com"]
[Source "ChessBase"]
[SourceQuality "1"]
[TimeControl "40/5400+30:1800+30"]

{[%evp 12,124,17,17,16,9,13,10,7,-7,0,-7,-6,0,0,-13,44,16,49,52,118,74,45,61,132,75,68,21,20,-59,-59,-100,-100,-100,-100,-100,-99,-95,-95,-104,-105,-113,-100,-118,-102,-164,-164,-156,-148,-152,-141,-241,-216,-225,-204,-219,-221,-310,-312,-281,-272,-297,-297,-810,-716,-835,-790,-2376,-2284,-6170,-12846,-29957,-5832,-5832,-5832,-5742,-5691,-1790,-995,-29966,-29964,-4798,-1048,-1745,-1637,-1490,-1043,-29974,-29976,-29977,-29976,-29977,-448,-428,0,-29977,-29978,-29983,-29981,-29983,-29982,-29984,-29985,-29985,-29986,-29986,-29987,-29987,-29986,-29986,-29984,-29984,-29985,-29985,-29986]} 1. e4 {[%emt 0:02:00]} c6 {[%emt 0:00:06]} 2. d4 {[%emt 0:00:15]} d5 {[%emt 0:00:05]} 3. e5 {[%emt 0:00:04]} Bf5 {[%emt 0:00:08]} 4. Bd3 {[%emt 0:00:05]} Bxd3 {[%emt 0:00:06]} 5. Qxd3 {[%emt 0:00:05]} e6 {[%emt 0:00:05]} 6. Ne2 {[%emt 0:00:05]} Nd7 {[%emt 0:00:45]} 7. O-O {[%emt 0:01:21]} Ne7 {[%emt 0:01:46]} 8. Nd2 {[%emt 0:00:53]} Nf5 {[%emt 1:31:29]} 9. c4 {[%emt 0:02:47]} dxc4 {[%emt 0:00:00] The position is equal.} 10. Qxc4 {[%emt 0:00:18]} Nb6 {[%emt 0:00:00]} 11. Qd3 {[%emt 0:02:21]} Be7 {[%emt 0:00:00]} 12. Ne4 $1 {[%emt 0:03:15]} O-O {[%emt 0:00:00][%cal Oc6c5]} 13. Rd1 {[%emt 0:00:11]} Qc7 {[%emt 0:00:00]} ({Black should try} 13... Nd5 $11) 14. Bg5 {[%emt 0:03:07]} (14. g4 $5 {[%cal Rg4f5]} Nh4 15. Bg5 $11) 14... Rad8 {[%emt 0:00:00]} (14... Nd5 {simplifies} 15. Bxe7 Qxe7 16. N2g3 Nxg3 17. Qxg3 Rad8) 15. g4 {[%emt 0:07:50]} Nh4 {[%emt 0:00:00] [#]} (15... Bxg5 $14 16. gxf5 Qe7) 16. Nf6+ $1 {[%emt 0:03:47][%mdl 512]} gxf6 {[%emt 0:00:00]} 17. exf6 {[%emt 0:00:02]} Bd6 {[%emt 0:00:00]} ({Black should play} 17... Ng6 $1 $14 18. fxe7 Nxe7) 18. Bxh4 {[%emt 0:00:17]} ({Better is} 18. Qh3 Nf3+ 19. Qxf3) 18... Nd5 $16 {[%emt 0:00:00]} 19. Qh3 {[%emt 0:08:40]} (19. Qf3 $14) 19... Kh8 $11 {[%emt 0:00:00]} 20. Bg5 {[%emt 0:15:32]} (20. Nc3 $11) 20... Rg8 $15 {[%emt 0:00:00]} 21. Qh4 {[%emt 0:00:33]} Rg6 $1 {[%emt 0:00:00]} (21... Bxh2+ $2 22. Kg2 $18) 22. Rd3 {[%emt 0:02:57] [#] Black must now prevent Rh3.} Nf4 {[%emt 0:00:00] Prevents Rh3.} 23. Nxf4 {[%emt 0:11:02]} Bxf4 {[%emt 0:00:00]} 24. Bxf4 {[%emt 0:00:19]} Qxf4 {[%emt 0:00:00]} 25. h3 {[%emt 0:00:02]} Rxd4 {[%emt 0:00:00]} 26. Rad1 {[%emt 0:00:18]} Rd5 {[%emt 0:00:00]} (26... Qxf6 $2 27. Qxf6+ Rxf6 28. Rxd4 $18) ({And not} 26... Rxd3 27. Rxd3 Rxf6 28. Rd7 $15) 27. Qg3 {[%emt 0:01:49]} Rxf6 {[%emt 0:00:00]} 28. Rxd5 {[%emt 0:03:30]} (28. Qxf4 $17 Rxf4 29. a3) 28... Qxg3+ $19 {[%emt 0:00:00]} ({Not} 28... exd5 29. Qxf4 Rxf4 30. Kg2 $17) 29. fxg3 {[%emt 0:00:06]} exd5 $17 {[%emt 0:00:00][%mdl 4096] Endgame KR-KR} 30. Rd3 {[%emt 0:00:39]} Re6 {[%emt 0:00:00]} 31. Rb3 {[%emt 0:02:57]} (31. Kf2 $17 {was called for.}) 31... b6 $19 {[%emt 0:00:00]} 32. Kf2 {[%emt 0:00:48]} Kg7 {[%emt 0:00:00]} 33. Ra3 {[%emt 0:00:22]} a5 {[%emt 0:00:00]} 34. Rb3 {[%emt 0:00:28]} (34. Rd3 $142) 34... c5 {[%emt 0:00:00]} 35. Rd3 {[%emt 0:01:27]} d4 {[%emt 0:00:00]} 36. a4 {[%emt 0:00:06]} Kf6 {[%emt 0:00:00] Hoping for ...Ke5.} 37. Kf3 $2 {[%emt 0:00:13]} (37. Rf3+ Ke7 38. g5) 37... Ke5 {[%emt 0:00:00]} 38. b3 {[%emt 0:00:54]} Kd5 {[%emt 0:00:00]} 39. Kf4 {[%emt 0:00:44]} c4 {[%emt 0:00:00]} 40. bxc4+ {[%emt 0:00:05]} Kxc4 {[%emt 0:00:00]} 41. Rd1 {[%emt 0:30:18]} Kc3 {[%emt 0:06:00]} (41... d3 $142 42. Kg5 Kc3 43. Rc1+ Kb3 44. Rc7 Rd6 45. Rc1 d2 46. Rd1 Kxa4 47. Kh4 Kb3 48. Kh5 Kc2 49. Rxd2+ Rxd2 50. Kh6 a4 51. Kh5 a3 52. Kg5 a2 53. Kh6 a1=Q 54. g5 Qe5 55. Kh5 Rd5 56. Kh6 Qxg5+ 57. Kxh7 Rd8 58. h4 Qg6#) 42. Rc1+ {[%emt 0:00:25]} Kd2 {[%emt 0:00:38]} 43. Rc7 {[%emt 0:00:08]} d3 {[%emt 0:01:39] Strongly threatening ...Ke1.} 44. Rxf7 {[%emt 0:01:36]} Rd6 {[%emt 0:00:06]} 45. Kf3 {[%emt 0:01:53]} Kc2 {[%emt 0:00:24]} 46. Rc7+ {[%emt 0:00:14]} Kd1 {[%emt 0:01:04]} (46... Kb3 $142 47. Rc1 d2) 47. Kf2 {[%emt 0:00:25]} h6 {[%emt 0:01:45]} 48. h4 {[%emt 0:00:14]} d2 {[%emt 0:00:21]} 49. g5 {[%emt 0:00:04]} hxg5 {[%emt 0:00:21]} 50. hxg5 {[%emt 0:00:04]} Rg6 {[%emt 0:00:38]} 51. Rd7 {[%emt 0:02:31]} Kc2 {[%emt 0:00:30]} (51... Rxg5 $142 52. Kf3 Kc2 53. Kf4 {[#]} Rg7 $3 {[%mdl 512]} 54. Rxg7 d1=Q 55. Rg4 Kb3 56. Kg5 b5 57. axb5 a4 58. Rf4 a3 59. Rf2 Qc1+ 60. Kh4 a2 61. Rxa2 Kxa2 62. Kh3 Kb3 63. Kh4 Qc4+ 64. Kg5 Qxb5+ 65. Kg6 Qd3+ 66. Kg7 Qxg3+ 67. Kf7 Qd6 68. Kg8 Qd7 69. Kf8 Kc4 70. Kg8 Kd5 71. Kf8 Ke6 72. Kg8 Kf6 73. Kh8 Qg7#) 52. Rc7+ {[%emt 0:07:16]} Kd1 {[%emt 0:00:50]} (52... Kb3 $19 53. Ke2 Kxa4 54. Kxd2 Rxg5 55. Rc4+ Kb5) 53. Rd7 {[%emt 0:00:10]} Rxg5 {[%emt 0:00:06] Black mates.} 54. Rd4 {[%emt 0:03:42]} Re5 {[%emt 0:00:55]} 55. g4 {[%emt 0:00:31]} Re2+ {[%emt 0:00:09]} 56. Kf3 {[%emt 0:00:11]} Ke1 {[%emt 0:00:13]} 57. g5 {[%emt 0:00:22]} d1=Q {[%emt 0:00:08]} 58. Rxd1+ {[%emt 0:00:11]} Kxd1 {[%emt 0:00:04]} 59. Kf4 {[%emt 0:00:04]} Kc2 {[%emt 0:00:13]} 60. g6 {[%emt 0:00:10]} Kb3 {[%emt 0:00:06]} 61. Kf5 {[%emt 0:00:09]} Kxa4 {[%emt 0:00:07]} 62. g7 {[%emt 0:00:03]} Rg2 {[%emt 0:00:04][%mdl 32768] Weighted Error Value: White=0.57/Black=0.59. Loss on time!?} 1-0

[Event "41st BAN National Women Chess-ch 2022"]
[Site "Dhaka"]
[Date "2022.11.24"]
[Round "7.5"]
[White "Jannatul, Ferdous"]
[Black "Kazi Zarin, Tasnim"]
[Result "0-1"]
[ECO "D02"]
[WhiteElo "1861"]
[BlackElo "1860"]
[Annotator "NA RC COMBH"]
[PlyCount "80"]
[EventDate "2022.11.17"]
[EventCountry "BAN"]
[SourceTitle "playchess.com"]
[Source "ChessBase"]
[SourceQuality "1"]
[TimeControl "40/5400+30:1800+30"]

{[%evp 8,78,12,4,9,-8,-7,-18,-16,-18,32767,-85,-116,32767,-112,-154,-177,-168,-163,-229,-209,-211,-215,-216,-210,32767,32767,32767,32767,-165,-172,-158,-125,-141,-127,-125,-127,-122,-122,-131,-118,-132,-126,-135,32767,-115,-97,-121,-108,-117,-91,32767,32767,32767,32767,32767,-24,-46,0,-27,-47,0,47,-222,-175,-906,-973,-993,32767,32767,32767,32767,-1304]} 1. d4 {[%emt 0:00:07]} d5 {[%emt 0:02:50]} 2. Bf4 {[%emt 0:00:16]} Nf6 {[%emt 0:00:16]} 3. e3 {[%emt 0:00:12]} e6 {[%emt 0:00:08]} 4. Nf3 {[%emt 0:00:57]} Bd6 {[%emt 0:00:07]} 5. Bg3 {[%emt 0:00:09]} c5 {[%emt 0:00:09]} 6. c3 {[%emt 0:00:07]} Qc7 {[%emt 0:00:33]} 7. Ne5 {[%emt 0:04:07]} Nbd7 {[%emt 0:03:18]} 8. f4 {[%emt 0:00:10]} Ne4 {[%emt 0:03:12]} 9. Bh4 {[%emt 0:05:08] [#]} (9. Bd3 $11 {remains equal.}) 9... cxd4 $1 {[%emt 0:04:46]} 10. exd4 {[%emt 0:01:39]} O-O {[%emt 0:01:54]} 11. Bb5 {[%emt 0:20:41]} ({Better is} 11. Nd2) 11... Nb6 {[%emt 0:09:13]} 12. O-O {[%emt 0:06:05]} f6 {[%emt 0:02:27]} 13. Nd3 {[%emt 0:00:30]} (13. Nd2 $17) 13... a6 {[%emt 0:00:07]} 14. Ba4 {[%emt 0:00:31]} Nxa4 {[%emt 0:00:07]} 15. Qxa4 {[%emt 0:00:09]} Bd7 {[%emt 0:00:08]} 16. Qd1 {[%emt 0:00:38]} Bb5 {[%emt 0:01:31]} 17. Bg3 {[%emt 0:05:09]} Qb6 {[%emt 0:01:39]} 18. Qb3 {[%emt 0:04:06]} Qc6 {[%emt 0:04:50]} 19. Qd1 {[%emt 0:08:10]} Nxg3 {[%emt 0:12:32]} (19... Rac8 $19 20. a4 Bc4) 20. hxg3 {[%emt 0:00:26]} e5 {[%emt 0:02:03]} 21. a4 {[%emt 0:09:24]} Bc4 {[%emt 0:03:21]} 22. b3 {[%emt 0:01:14]} Bxd3 {[%emt 0:00:22]} 23. Qxd3 {[%emt 0:00:02]} exd4 {[%emt 0:00:29]} 24. cxd4 {[%emt 0:00:32]} Rac8 {[%emt 0:00:57]} 25. Ra2 {[%emt 0:00:57]} Rfe8 {[%emt 0:06:13]} 26. Re2 {[%emt 0:01:59]} Rxe2 {[%emt 0:01:23]} 27. Qxe2 {[%emt 0:00:06]} Re8 {[%emt 0:00:09]} 28. Qd3 {[%emt 0:01:31]} Bb4 {[%emt 0:03:10]} 29. Kh2 {[%emt 0:07:48]} Re4 {[%emt 0:01:52]} 30. Nd2 {[%emt 0:02:57]} Bxd2 {[%emt 0:01:05]} 31. Qxd2 {[%emt 0:00:03]} Qe8 {[%emt 0:05:58]} 32. Qb4 $15 {[%emt 0:16:21]} b5 {[%emt 0:08:36]} (32... Qd7 $1 $15 {is superior.}) 33. Rc1 {[%emt 0:01:56]} Qh5+ {[%emt 0:12:28]} 34. Kg1 {[%emt 0:00:01]} Qe2 {[%emt 0:00:12]} (34... h6 $11) 35. Rc8+ $2 {[%emt 0:01:35] [#]} (35. Qc5 $14 {stays ahead.}) 35... Kf7 $1 {[%emt 0:00:04]} ({Not} 35... Re8 36. Qc5 $11) 36. Qf8+ $2 {[%emt 0:00:45]} ({Not} 36. Kh2 $2 Qh5+ 37. Kg1 Qd1+ 38. Kh2 Re1 $19) (36. axb5 axb5 37. f5 (37. Kh2 $2 Qh5+ 38. Kg1 Qd1+ 39. Kh2 Re1 $19) 37... Qd1+ 38. Kh2 Qh5+ 39. Kg1 Qxf5 40. Rc7+ Kg6 41. Re7 (41. Qf8 $2 {gets mated.} Re1+ 42. Kh2 Qh5#)) 36... Kg6 {[%emt 0:00:03]} 37. Qb4 {[%emt 0:01:48]} Qd1+ {[%emt 0:01:45]} 38. Kh2 {[%emt 0:00:27]} Re1 {[%emt 0:00:32]} 39. f5+ {[%emt 0:00:33]} Kxf5 {[%emt 0:01:26]} 40. g4+ {[%emt 0:00:19]} Kxg4 {[%emt 0:00:12]} 0-1